fUSD/lending_fUSD_20240515
["ID","MTS","AMOUNT","RATE_DAILY","PERIOD"]
[327100102,1715811047189,-500.0,0.00012876,2]
[327100103,1715811047199,-500.0,0.00012876,2]
[327100104,1715811047210,-500.0,0.00012876,2]
[327100105,1715811047220,-500.0,0.00012876,2]
[327100106,1715811047230,-500.0,0.00012876,2]
[327100107,1715811047240,-500.0,0.00012876,2]
[327100108,1715811047250,-500.0,0.00012876,2]
[327100109,1715811047259,-500.0,0.00012876,2]
[327100110,1715811047270,-500.0,0.00012876,2]
[327100111,1715811047280,-500.0,0.00012876,2]
[327100112,1715811047289,-500.0,0.00012876,2]
[327100113,1715811047299,-500.0,0.00012876,2]
[327100114,1715811047309,-500.0,0.00012876,2]
[327100115,1715811047318,-500.0,0.00012876,2]
[327100116,1715811047328,-500.0,0.00012876,2]
[327100117,1715811047338,-500.0,0.00012876,2]
[327100118,1715811047347,-500.0,0.00012876,2]
[327100119,1715811047357,-500.0,0.00012876,2]
[327100120,1715811047368,-500.0,0.00012876,2]
[327100121,1715811047378,-500.0,0.00012876,2]
[327100122,1715811047387,-590.15,0.00012876,2]
[327100123,1715811047397,-590.15,0.00012876,2]
[327100124,1715811047406,-500.0,0.00012876,2]
[327100125,1715811047416,-500.0,0.00012876,2]
[327100126,1715811047425,-500.0,0.00012876,2]
[327100127,1715811047434,-376.82781419,0.00012876,2]
[327100128,1715811047448,-123.17218581,0.00012876,2]
[327100129,1715811047457,-500.0,0.00012876,2]
[327100130,1715811047467,-500.0,0.00012876,2]
[327100131,1715811047476,-500.0,0.00012876,2]
[327100132,1715811047486,-500.0,0.00012876,2]
[327100133,1715811047496,-500.0,0.00012876,2]
[327100134,1715811047508,-500.0,0.00012876,2]
[327100135,1715811047519,-296.98943266,0.00012876,2]
[327100136,1715811047529,-500.0,0.00012876,2]
[327100137,1715811047538,-500.0,0.00012876,2]
[327100138,1715811047548,-500.0,0.00012876,2]
[327100139,1715811047558,-500.0,0.00012876,2]
[327100140,1715811047568,-500.0,0.00012876,2]
[327100141,1715811047577,-500.0,0.00012876,2]
[327100142,1715811047590,-500.0,0.00012876,2]
[327100143,1715811047600,-500.0,0.00012876,2]
[327100144,1715811047610,-489.61811292,0.00012876,2]
[327100145,1715811047620,-549.98,0.00012876,2]
[327100146,1715811047630,-313.14,0.00012876,2]
[327100147,1715811047640,-500.0,0.00012876,2]
[327100148,1715811047651,-500.0,0.00012876,2]
[327100149,1715811047661,-500.0,0.00012876,2]
[327100150,1715811047670,-500.0,0.00012876,2]
[327100151,1715811047680,-500.0,0.00012876,2]
[327100152,1715811047690,-500.0,0.00012876,2]
[327100153,1715811047700,-500.0,0.00012876,2]
[327100154,1715811047709,-178.06,0.00012876,2]
[327100155,1715811047720,-500.0,0.00012876,2]
[327100156,1715811047729,-500.0,0.00012876,2]
[327100157,1715811047739,-500.0,0.00012876,2]
[327100158,1715811047748,-500.0,0.00012876,2]
[327100159,1715811047758,-500.0,0.00012876,2]
[327100160,1715811047768,-254.48,0.00012876,2]
[327100161,1715811047777,-500.0,0.00012876,2]
[327100162,1715811047786,-500.0,0.00012876,2]
[327100163,1715811047796,-500.0,0.00012876,2]
[327100164,1715811047806,-500.0,0.00012876,2]
[327100165,1715811047815,-500.0,0.00012876,2]
[327100166,1715811047825,-500.0,0.00012876,2]
[327100167,1715811047834,-500.0,0.00012876,2]
[327100168,1715811047844,-500.0,0.00012876,2]
[327100169,1715811047853,-500.0,0.00012876,2]
[327100170,1715811047863,-500.0,0.00012876,2]
[327100171,1715811047872,-500.0,0.00012876,2]
[327100172,1715811047881,-500.0,0.00012876,2]
[327100173,1715811047891,-500.0,0.00012876,2]
[327100174,1715811047900,-500.0,0.00012876,2]
[327100175,1715811047909,-500.0,0.00012876,2]
[327100176,1715811047919,-496.58877347,0.00012876,2]
[327100177,1715811047929,-500.0,0.00012876,2]
[327100178,1715811047938,-500.0,0.00012876,2]
[327100179,1715811047947,-500.0,0.00012876,2]
[327100180,1715811047957,-500.0,0.00012876,2]
[327100181,1715811047966,-230.91,0.00012876,2]
[327100182,1715811047975,-546.32,0.00012876,2]
[327100183,1715811047985,-500.0,0.00012876,2]
[327100184,1715811047994,-514.74,0.00012876,2]
[327100185,1715811048004,-500.0,0.00012876,2]
[327100186,1715811048013,-500.0,0.00012876,2]
[327100187,1715811048022,-500.0,0.00012876,2]
[327100188,1715811048031,-500.0,0.00012876,2]
[327100189,1715811048041,-500.0,0.00012876,2]
[327100190,1715811048050,-500.0,0.00012876,2]
[327100191,1715811048060,-508.42612055,0.00012876,2]
[327100192,1715811048069,-169.46,0.00012876,2]
[327100193,1715811048078,-500.0,0.00012876,2]
[327100194,1715811048087,-624.18,0.00012876,2]
[327100195,1715811048096,-500.0,0.00012876,2]
[327100196,1715811048105,-500.0,0.00012876,2]
[327100197,1715811048115,-500.0,0.00012876,2]
[327100198,1715811048124,-500.0,0.00012876,2]
[327100199,1715811048134,-500.0,0.00012876,2]
[327100200,1715811048143,-509.12380112,0.00012876,2]
[327100201,1715811048152,-500.0,0.00012876,2]
[327100202,1715811048161,-500.0,0.00012876,2]
[327100203,1715811048171,-500.0,0.00012876,2]
[327100204,1715811048180,-500.0,0.00012876,2]
[327100205,1715811048190,-500.0,0.00012876,2]
[327100206,1715811048199,-500.0,0.00012876,2]
[327100207,1715811048208,-500.0,0.00012876,2]
[327100208,1715811048218,-510.17747843,0.00012876,2]
[327100209,1715811048227,-500.0,0.00012876,2]
[327100210,1715811048237,-500.0,0.00012876,2]
[327100211,1715811048246,-500.0,0.00012876,2]
[327100212,1715811048256,-500.0,0.00012876,2]
[327100213,1715811048265,-500.0,0.00012876,2]
[327100214,1715811048275,-500.0,0.00012876,2]
[327100215,1715811048284,-500.0,0.00012876,2]
[327100216,1715811048294,-500.0,0.00012876,2]
[327100217,1715811048303,-500.0,0.00012876,2]
[327100218,1715811048322,-500.0,0.00012876,2]
[327100219,1715811048334,-502.64,0.00012876,2]
[327100220,1715811048344,-500.0,0.00012876,2]
[327100221,1715811048354,-457.2,0.00012876,2]
[327100222,1715811048364,-500.0,0.00012876,2]
[327100223,1715811048375,-500.0,0.00012876,2]
[327100224,1715811048385,-833.49,0.00012876,2]
[327100225,1715811048395,-500.0,0.00012876,2]
[327100226,1715811048405,-833.49,0.00012876,2]
[327100227,1715811048415,-500.0,0.00012876,2]
[327100228,1715811048425,-500.0,0.00012876,2]
[327100229,1715811048435,-500.0,0.00012876,2]
[327100230,1715811048445,-432.54864574,0.00012876,2]
[327100231,1715811048455,-500.0,0.00012876,2]
[327100232,1715811048464,-500.0,0.00012876,2]
[327100233,1715811048474,-500.0,0.00012876,2]
[327100234,1715811048483,-500.0,0.00012876,2]
[327100235,1715811048493,-500.0,0.00012876,2]
[327100236,1715811048505,-500.0,0.00012876,2]
[327100237,1715811048519,-500.0,0.00012876,2]
[327100238,1715811048528,-500.0,0.00012876,2]
[327100239,1715811048538,-500.0,0.00012876,2]
[327100240,1715811048547,-500.0,0.00012876,2]
[327100241,1715811048557,-500.0,0.00012876,2]
[327100242,1715811048567,-577.4638581,0.00012876,2]
[327100243,1715811048576,-266.31,0.00012876,2]
[327100244,1715811048587,-500.0,0.00012876,2]
[327100245,1715811048596,-500.0,0.00012876,2]
[327100246,1715811048606,-500.0,0.00012876,2]
[327100247,1715811048615,-500.0,0.00012876,2]
[327100248,1715811048625,-500.0,0.00012876,2]
[327100249,1715811048636,-500.0,0.00012876,2]
[327100250,1715811048647,-500.0,0.00012876,2]
[327100251,1715811048657,-500.0,0.00012876,2]
[327100252,1715811048667,-500.0,0.00012876,2]
[327100253,1715811048676,-500.0,0.00012876,2]
[327100254,1715811048686,-211.49175,0.00012876,2]
[327100255,1715811048695,-500.0,0.00012876,2]
[327100256,1715811048705,-500.0,0.00012876,2]
[327100257,1715811048715,-500.0,0.00012876,2]
[327100258,1715811048724,-1000.0,0.00012895,2]
[327100259,1715811048734,-500.0,0.00012895,2]
[327100260,1715811048744,-200.0,0.00012896,2]
[327100261,1715811048755,-1000.0,0.00012896,2]
[327100262,1715811048765,-200.0,0.00012896,2]
[327100263,1715811048775,-500.0,0.00012896,2]
[327100264,1715811048785,-500.0,0.00012899,2]
[327100265,1715811048794,-500.0,0.00012899,2]
[327100266,1715811048804,-500.0,0.00012899,2]
[327100267,1715811048813,-511.14356944,0.00012899,2]
[327100268,1715811048823,-500.0,0.00012899,2]
[327100269,1715811048833,-214.79553314,0.00012899,2]
[327100270,1715811048842,-492.09143245,0.00012899,2]
[327100271,1715811048852,-514.64686514,0.00012899,2]
[327100272,1715811048862,-500.0,0.00012899,2]
[327100273,1715811048873,-500.0,0.00012899,2]
[327100274,1715811048882,-500.0,0.00012899,2]
[327100275,1715811048892,-520.34206407,0.00012899,2]
[327100276,1715811048901,-500.0,0.00012899,2]
[327100277,1715811048911,-500.0,0.00012899,2]
[327100278,1715811048921,-500.0,0.00012899,2]
[327100279,1715811048931,-500.0,0.00012899,2]
[327100280,1715811048944,-500.0,0.00012899,2]
[327100281,1715811048954,-500.0,0.00012899,2]
[327100282,1715811048964,-232.18112114,0.00012899,2]
[327100283,1715811048974,-150.0,0.00012899,2]
[327100284,1715811048984,-363.55297529,0.00012899,2]
[327100285,1715811048993,-566.86,0.00012899,2]
[327100286,1715811049005,-500.0,0.00012899,2]
[327100287,1715811049015,-262.76,0.00012899,2]
[327100288,1715811049025,-500.0,0.00012899,2]
[327100289,1715811049035,-299.32,0.00012899,2]
[327100290,1715811049045,-500.0,0.00012899,2]
[327100291,1715811049054,-457.66,0.00012899,2]
[327100292,1715811049065,-201.36,0.00012899,2]
[327100293,1715811049075,-500.0,0.00012899,2]
[327100294,1715811049085,-500.0,0.00012899,2]
[327100295,1715811049094,-551.64,0.00012899,2]
[327100296,1715811049104,-500.0,0.00012899,2]
[327100297,1715811049114,-500.0,0.00012899,2]
[327100298,1715811049124,-500.0,0.00012899,2]
[327100299,1715811049134,-500.0,0.00012899,2]
[327100300,1715811049144,-275.9,0.00012899,2]
[327100301,1715811049154,-500.0,0.00012899,2]
[327100302,1715811049166,-500.0,0.00012899,2]
[327100303,1715811049176,-500.0,0.00012899,2]
[327100304,1715811049186,-583.57,0.00012899,2]
[327100305,1715811049196,-500.0,0.00012899,2]
[327100306,1715811049205,-500.0,0.00012899,2]
[327100307,1715811049215,-551.94,0.00012899,2]
[327100308,1715811049225,-500.0,0.00012899,2]
[327100309,1715811049235,-500.0,0.00012899,2]
[327100310,1715811049245,-490.08,0.00012899,2]
[327100311,1715811049259,-500.0,0.00012899,2]
[327100312,1715811049269,-500.0,0.00012899,2]
[327100313,1715811049278,-500.0,0.00012899,2]
[327100314,1715811049288,-276.5851796,0.00012899,2]
[327100315,1715811049298,-500.0,0.00012899,2]
[327100316,1715811049308,-500.0,0.00012899,2]
[327100317,1715811049318,-500.0,0.00012899,2]
[327100318,1715811049327,-500.0,0.00012899,2]
[327100319,1715811049337,-500.0,0.00012899,2]
[327100320,1715811049346,-500.0,0.00012899,2]
[327100321,1715811049356,-549.04,0.00012899,2]
[327100322,1715811049366,-500.0,0.00012899,2]
[327100323,1715811049376,-500.0,0.00012899,2]
[327100324,1715811049386,-500.0,0.00012899,2]
[327100325,1715811049396,-500.0,0.00012899,2]
[327100326,1715811049406,-500.0,0.00012899,2]
[327100327,1715811049416,-500.0,0.00012899,2]
[327100328,1715811049426,-500.0,0.00012899,2]
[327100329,1715811049435,-500.0,0.00012899,2]
[327100330,1715811049445,-500.0,0.00012899,2]
[327100331,1715811049454,-500.0,0.00012899,2]
[327100332,1715811049463,-500.0,0.00012899,2]
[327100333,1715811049473,-500.0,0.00012899,2]
[327100334,1715811049483,-1905.54,0.00012899,2]
[327100335,1715811049492,-768.96,0.00012899,2]
[327100336,1715811049594,-500.0,0.00012899,2]
[327100337,1715811049604,-500.0,0.00012899,2]
[327100338,1715811049613,-1029.93,0.00012899,2]
[327100339,1715811049622,-421.91,0.00012899,2]
[327100340,1715811049631,-500.0,0.00012899,2]
[327100341,1715811049641,-500.0,0.00012899,2]
[327100342,1715811049651,-500.0,0.00012899,2]
[327100343,1715811049660,-500.0,0.00012899,2]
[327100344,1715811049668,-500.0,0.00012899,2]
[327100345,1715811049679,-500.0,0.00012899,2]
[327100346,1715811049688,-590.15,0.00012899,2]
[327100347,1715811049698,-500.0,0.00012899,2]
[327100348,1715811049707,-500.0,0.00012899,2]
[327100349,1715811049716,-7913.32620279,0.00012899,2]
[327100350,1715811049732,-395.95301344,0.00012899,2]
[327100351,1715811049743,-1074.57813752,0.00012899,2]
[327100352,1715811049756,-500.0,0.00012899,2]
[327100353,1715811049767,-500.0,0.00012899,2]
[327100354,1715811049776,-500.0,0.00012899,2]
[327100355,1715811049785,-500.0,0.00012899,2]
[327100356,1715811049794,-500.0,0.00012899,2]
[327100357,1715811049804,-450.46,0.00012899,2]
[327100358,1715811049813,-500.0,0.00012899,2]
[327100359,1715811049822,-237.47183621,0.00012899,2]
[327100360,1715811049831,-500.0,0.00012899,2]
[327100361,1715811049840,-500.0,0.00012899,2]
[327100362,1715811049848,-500.0,0.00012899,2]
[327100363,1715811049859,-500.0,0.00012899,2]
[327100364,1715811049868,-500.0,0.00012899,2]
[327100365,1715811049877,-500.0,0.00012899,2]
[327100366,1715811049886,-500.0,0.00012899,2]
[327100367,1715811049895,-500.0,0.00012899,2]
[327100368,1715811049904,-500.0,0.00012899,2]
[327100369,1715811049913,-61.26380923,0.00012899,2]
[327100370,1715811049925,-438.73619077,0.00012899,2]
[327100371,1715811049935,-458.85380921,0.00012899,2]
[327100372,1715811049946,-41.14619079,0.00012899,2]
[327100373,1715811049955,-500.0,0.00012899,2]
[327100374,1715811049964,-500.0,0.00012899,2]
[327100375,1715811049973,-500.0,0.00012899,2]
[327100376,1715811049982,-833.49,0.00012899,2]
[327100377,1715811049992,-500.0,0.00012899,2]
[327100378,1715811050002,-500.0,0.00012899,2]
[327100379,1715811050015,-500.0,0.00012899,2]
[327100380,1715811050024,-500.0,0.00012899,2]
[327100381,1715811050033,-500.0,0.00012899,2]
[327100382,1715811050043,-500.0,0.00012899,2]
[327100383,1715811050052,-500.0,0.00012899,2]
[327100384,1715811050061,-500.0,0.00012899,2]
[327100385,1715811050071,-500.0,0.00012899,2]
[327100386,1715811050080,-39258.25254416,0.000129,2]
[327100387,1715811050128,-103019.39783771,0.000129,2]
[327100388,1715811050139,-2825.04658628,0.000129,2]
[327100389,1715811050150,-3070.98457271,0.000129,2]
[327100390,1715811050281,-1826.31845914,0.000129,2]
[327100391,1715811050290,-6.46980086,0.000129,2]
[327100420,1715812233212,-155.0,9.041e-05,2]
[327100421,1715812233222,-160.45,9.042e-05,2]
[327100422,1715812233232,-229.59698858,9.042e-05,2]
[327100423,1715812233241,-229.59698857,9.521e-05,2]
[327100424,1715812233250,-804.35457658,0.0001,3]
[327100425,1715812233259,-229.59698857,0.0001,2]
[327100426,1715812233269,-800.0,0.0001026,2]
[327100427,1715812233279,-500.0,0.0001026,2]
[327100428,1715812233288,-500.0,0.0001026,2]
[327100429,1715812233301,-2500.0,0.0001026,2]
[327100430,1715812233312,-3100.0,0.0001026,2]
[327100431,1715812233321,-155.0,0.000106,2]
[327100432,1715812233331,-277.77,0.00010816,2]
[327100433,1715812233340,-23880.0,0.0001087,2]
[327100434,1715812233349,-250.0,0.00010893,2]
[327100435,1715812233359,-936.0,0.00010905,2]
[327100436,1715812233376,-1663.1,0.00010933,2]
[327100437,1715812233388,-174.57,0.00010935,2]
[327100438,1715812233397,-12278.56,0.00010959,2]
[327100439,1715812233407,-1163.57,0.00010959,2]
[327100440,1715812233416,-499.99,0.00010959,2]
[327100441,1715812233426,-128.11673239,0.00010986,2]
[327100442,1715812233451,-87.10326761,0.00010986,2]
[327100443,1715812233461,-843.41,0.00010986,2]
[327100444,1715812233470,-986.28912182,0.00010998,2]
[327100445,1715812233481,-1178.45951756,0.00010998,2]
[327100446,1715812233493,-149.78136062,0.00010998,2]
[327100447,1715812233503,-803.3483767,0.00011036,2]
[327100448,1715812233512,-160.0,0.00011053,2]
[327100449,1715812233522,-20.03156205,0.00011082,2]
[327100450,1715812233534,-779.96843795,0.00011082,2]
[327100451,1715812233543,-500.0,0.00011082,2]
[327100452,1715812233554,-995.51812591,0.00011082,2]
[327100453,1715812233570,-578.5596183,0.00011082,2]
[327100454,1715812233721,-925.92225579,0.00011082,2]
[327100456,1715812233730,-3100.0,0.00011082,2]
[327100459,1715812233740,-299.86387542,0.00011189,2]
[327100461,1715812233749,-175.3,0.00011395,2]
[327100463,1715812233759,-165.74,0.00011448,2]
[327100465,1715812233769,-275.3788,0.00011522,2]
[327100467,1715812233778,-188.462909,0.00011522,2]
[327100469,1715812233787,-537.15979,0.00011522,2]
[327100471,1715812233797,-193.446385,0.00011522,2]
[327100473,1715812233809,-1814.39697,0.00011522,2]
[327100475,1715812233818,-297.775005,0.00011522,2]
[327100477,1715812233827,-194.499434,0.00011522,2]
[327100479,1715812233836,-171.490943,0.00011522,2]
[327100481,1715812233845,-194.499434,0.00011522,2]
[327100483,1715812233857,-171.490942,0.00011522,2]
[327100485,1715812233868,-166.850615,0.00011522,2]
[327100487,1715812233877,-537.15979,0.00011666,2]
[327100489,1715812233887,-1814.39697,0.00011666,2]
[327100491,1715812233897,-297.775005,0.00011666,2]
[327100493,1715812233906,-576.1483,0.0001168,2]
[327100495,1715812233917,-3498.9492,0.0001168,2]
[327100497,1715812233926,-171.490943,0.00011714,2]
[327100499,1715812233938,-171.490942,0.00011714,2]
[327100501,1715812233947,-522.96,0.00011781,2]
[327100503,1715812233957,-163.35,0.00011781,2]
[327100505,1715812233966,-163.35,0.00011781,2]
[327100507,1715812233975,-537.15979,0.0001181,2]
[327100509,1715812233984,-1814.39697,0.0001181,2]
[327100511,1715812233994,-297.775005,0.0001181,2]
[327100513,1715812234003,-150.0,0.00011824,2]
[327100515,1715812234012,-179.71,0.00011855,2]
[327100517,1715812234022,-800.0,0.00011904,2]
[327100518,1715812234031,-500.0,0.00011904,2]
[327100520,1715812234040,-500.0,0.00011904,2]
[327100521,1715812234051,-2500.0,0.00011904,2]
[327100522,1715812234060,-3100.0,0.00011904,2]
[327100523,1715812234069,-171.490943,0.00011906,2]
[327100524,1715812234079,-171.490942,0.00011906,2]
[327100525,1715812234088,-150.0,0.00011931,2]
[327100526,1715812234097,-537.15979,0.00011954,2]
[327100527,1715812234107,-1814.39697,0.00011954,2]
[327100528,1715812234116,-297.775005,0.00011954,2]
[327100529,1715812234125,-1291.3552,0.00011998,2]
[327100530,1715812234135,-150.0,0.00012038,2]
[327100531,1715812234144,-410.03425881,0.00012054,2]
[327100532,1715812234154,-577.54,0.00012055,2]
[327100533,1715812234163,-537.15979,0.00012098,2]
[327100534,1715812234173,-1814.39697,0.00012098,2]
[327100535,1715812234182,-297.775005,0.00012098,2]
[327100536,1715812234191,-171.490943,0.00012098,2]
[327100537,1715812234200,-171.490942,0.00012098,2]
[327100538,1715812234210,-150.0,0.00012145,2]
[327100539,1715812234219,-180.0,0.00012175,2]
[327100540,1715812234228,-150.0,0.00012252,2]
[327100541,1715812234239,-170.32,0.00012257,2]
[327100542,1715812234252,-936.0,0.00012268,2]
[327100543,1715812234262,-9500.0,0.00012328,2]
[327100544,1715812234272,-150.0,0.00012359,2]
[327100545,1715812234281,-354.546,0.00012529,2]
[327100546,1715812234290,-37793.0,0.00012529,2]
[327100547,1715812234302,-1923.774,0.00012529,2]
[327100548,1715812234311,-1227.0,0.00012529,2]
[327100549,1715812234320,-163.35,0.00012603,2]
[327100550,1715812234330,-1602.06760479,0.00012675,2]
[327100551,1715812234341,-1602.0676047,0.000127,2]
[327100552,1715812234352,-800.0,0.00012726,2]
[327100553,1715812234363,-2500.0,0.00012726,2]
[327100554,1715812234373,-3100.0,0.00012726,2]
[327100555,1715812234383,-174.57,0.00012758,2]
[327100556,1715812234393,-12649.23290629,0.00012774,2]
[327100557,1715812234402,-6787.6748,0.00012775,2]
[327100558,1715812234412,-372.6813,0.00012776,2]
[327100559,1715812234422,-60581.62591797,0.00012776,2]
[327100560,1715812234434,-4611.58520454,0.00012776,2]
[327100561,1715812234446,-7061.15247749,0.00012776,2]
[327100562,1715812234456,-162.16161132,0.00012776,2]
[327100563,1715812234465,-661.11399472,0.00012776,2]
[327100564,1715812234474,-3400.81417688,0.000128,2]
[327100565,1715812234486,-1599.18582312,0.000128,2]
[327100566,1715812234496,-298.324,0.00012849,2]
[327100567,1715812234505,-338.57727157,0.00012869,2]
[327100568,1715812234515,-343.65261696,0.00012874,2]
[327100569,1715812234524,-167.68316704,0.00012874,2]
[327100570,1715812234534,-355.81530773,0.00012874,2]
[327100571,1715812234544,-155.0,0.00012874,2]
[327100572,1715812234554,-202.1932044,0.00012874,2]
[327100573,1715812234564,-319.73872803,0.00012874,2]
[327100574,1715812234574,-177.68872852,0.00012874,2]
[327100575,1715812234583,-3863.97202559,0.00012874,2]
[327100576,1715812234592,-12060.357984,0.00012875,2]
[327100577,1715812234604,-20403.69089412,0.00012875,2]
[327100578,1715812234616,-2875.71557542,0.00012875,2]
[327100579,1715812234626,-500.0,0.00012876,2]
[327100580,1715812234635,-585.40365702,0.00012876,2]
[327100581,1715812234647,-54.64868635,0.00012876,2]
[327100582,1715812234656,-501.09851947,0.00012876,2]
[327100583,1715812234665,-501.71318679,0.00012876,2]
[327100584,1715812234674,-508.77838012,0.00012876,2]
[327100585,1715812234684,-502.32275193,0.00012876,2]
[327100586,1715812234694,-178.94187128,0.00012876,2]
[327100590,1715812238003,-155.0,0.000125,2]
[327100591,1715812238243,-264.40441158,0.00012876,2]
[327100592,1715812238253,-520.47671671,0.00012876,2]
[327100593,1715812238263,-255.25,0.00012876,2]
[327100594,1715812238273,-500.0,0.00012876,2]
[327100595,1715812238282,-500.0,0.00012876,2]
[327100596,1715812238291,-404.3665135,0.00012876,2]
[327100597,1715812238301,-500.0,0.00012876,2]
[327100598,1715812238315,-434.43214312,0.00012876,2]
[327100599,1715812238326,-500.0,0.00012876,2]
[327100600,1715812238337,-500.0,0.00012876,2]
[327100601,1715812238347,-500.0,0.00012876,2]
[327100602,1715812238357,-507.61296246,0.00012876,2]
[327100603,1715812238367,-500.0,0.00012876,2]
[327100604,1715812238376,-500.0,0.00012876,2]
[327100605,1715812238385,-500.0,0.00012876,2]
[327100606,1715812238395,-404.3,0.00012876,2]
[327100607,1715812238404,-633.66499038,0.00012876,2]
[327100608,1715812238414,-500.0,0.00012876,2]
[327100609,1715812238423,-620.44784206,0.00012876,2]
[327100610,1715812238432,-507.8652441,0.00012876,2]
[327100611,1715812238441,-500.0,0.00012876,2]
[327100612,1715812238451,-551.82798071,0.00012876,2]
[327100613,1715812238460,-500.0,0.00012876,2]
[327100614,1715812238470,-358.30967357,0.00012876,2]
[327100615,1715812238480,-272.58116584,0.00012876,2]
[327100616,1715812238490,-500.0,0.00012876,2]
[327100617,1715812238500,-500.0,0.00012876,2]
[327100618,1715812238510,-525.6,0.00012876,2]
[327100619,1715812238519,-608.77525022,0.00012876,2]
[327100620,1715812238530,-500.0,0.00012876,2]
[327100621,1715812238539,-500.0,0.00012876,2]
[327100622,1715812238549,-500.0,0.00012876,2]
[327100623,1715812238562,-522.71676145,0.00012876,2]
[327100624,1715812238571,-500.0,0.00012876,2]
[327100625,1715812238581,-500.0,0.00012876,2]
[327100626,1715812238591,-500.0,0.00012876,2]
[327100627,1715812238600,-500.0,0.00012876,2]
[327100628,1715812238610,-500.0,0.00012876,2]
[327100629,1715812238621,-500.0,0.00012876,2]
[327100630,1715812238630,-500.0,0.00012876,2]
[327100631,1715812238640,-500.0,0.00012876,2]
[327100632,1715812238649,-500.0,0.00012876,2]
[327100633,1715812238659,-500.0,0.00012876,2]
[327100634,1715812238669,-277.52,0.00012876,2]
[327100635,1715812238679,-500.0,0.00012876,2]
[327100636,1715812238688,-500.0,0.00012876,2]
[327100637,1715812238698,-500.0,0.00012876,2]
[327100638,1715812238707,-500.0,0.00012876,2]
[327100639,1715812238718,-500.0,0.00012876,2]
[327100640,1715812238727,-365.1,0.00012876,2]
[327100641,1715812238736,-500.0,0.00012876,2]
[327100642,1715812238746,-488.27070479,0.00012876,2]
[327100643,1715812238755,-500.0,0.00012876,2]
[327100644,1715812238764,-427.17623337,0.00012876,2]
[327100645,1715812238774,-500.0,0.00012876,2]
[327100646,1715812238783,-588.95,0.00012876,2]
[327100647,1715812238792,-500.0,0.00012876,2]
[327100648,1715812238802,-500.0,0.00012876,2]
[327100649,1715812238812,-500.0,0.00012876,2]
[327100650,1715812238821,-255.46,0.00012876,2]
[327100651,1715812238831,-500.0,0.00012876,2]
[327100652,1715812238840,-500.0,0.00012876,2]
[327100653,1715812238849,-500.0,0.00012876,2]
[327100654,1715812238859,-500.0,0.00012876,2]
[327100655,1715812238872,-153.74,0.00012876,2]
[327100656,1715812238881,-500.0,0.00012876,2]
[327100657,1715812238890,-309.71,0.00012876,2]
[327100658,1715812238899,-500.0,0.00012876,2]
[327100659,1715812238910,-500.0,0.00012876,2]
[327100660,1715812238920,-500.0,0.00012876,2]
[327100661,1715812238929,-500.0,0.00012876,2]
[327100662,1715812238940,-159.67,0.00012876,2]
[327100663,1715812238950,-500.0,0.00012876,2]
[327100664,1715812238959,-500.0,0.00012876,2]
[327100665,1715812238970,-500.0,0.00012876,2]